fUSD/lending_fUSD_20240612
["ID","MTS","AMOUNT","RATE_DAILY","PERIOD"]
[329197180,1718171443738,-500.0,0.00019093,2]
[329197182,1718171443752,-200.0,0.00019093,2]
[329197184,1718171443764,-152.11,0.00019159,2]
[329197186,1718171443777,-500.0,0.0001916,2]
[329197188,1718171443790,-460.56426366,0.00019168,2]
[329197190,1718171443803,-174364.2799893,0.00019169,2]
[329197193,1718171443825,-600.0,0.00019169,2]
[329197203,1718171444050,-5704.22826908,0.00019169,2]
[329197293,1718171445515,-0.04750141,0.00019169,2]
[329197295,1718171445537,-3210.79791008,0.00019169,2]
[329197334,1718171446024,-2937.84616869,0.00019169,2]
[329197336,1718171446038,-2191.28868631,0.00019169,2]
[329197351,1718171446216,-527.95957215,0.00019169,2]
[329197379,1718171446508,-274.24691844,0.00015391,2]
[329197381,1718171446527,-382.00432847,0.00015461,2]
[329197383,1718171446541,-4082.18785519,0.00019169,2]
[329197388,1718171446605,-1555.73494035,0.00019169,2]
[329197391,1718171446631,-27353.33808669,0.00019169,2]
[329197393,1718171446648,-939.63137312,0.00019169,2]
[329197426,1718171446968,-1955.37015624,0.00019169,2]
[329197449,1718171447209,-417.53,0.00018736,2]
[329197450,1718171447221,-600.1530018,0.00019169,2]
[329197453,1718171447240,-208597.72678179,0.00019169,2]
[329197455,1718171447252,-152.785627,0.00019169,2]
[329197457,1718171447263,-151.0,0.00019169,2]
[329197459,1718171447273,-151.0,0.00019169,2]
[329197461,1718171447284,-151.0,0.00019169,2]
[329197463,1718171447295,-151.0,0.00019169,2]
[329197465,1718171447306,-184.659978,0.00019169,2]
[329197467,1718171447316,-151.0,0.00019169,2]
[329197469,1718171447327,-151.0,0.00019169,2]
[329197471,1718171447337,-151.0,0.00019169,2]
[329197473,1718171447347,-151.0,0.00019169,2]
[329197475,1718171447359,-151.632995,0.00019169,2]
[329197477,1718171447370,-151.632995,0.00019169,2]
[329197479,1718171447380,-187.691041,0.00019169,2]
[329197481,1718171447390,-151.0,0.00019169,2]
[329197483,1718171447401,-151.0,0.00019169,2]
[329197485,1718171447411,-151.0,0.00019169,2]
[329197487,1718171447422,-155.616728,0.00019169,2]
[329197489,1718171447433,-151.0,0.00019169,2]
[329197491,1718171447444,-152.770849,0.00019169,2]
[329197493,1718171447455,-151.0,0.00019169,2]
[329197495,1718171447466,-151.0,0.00019169,2]
[329197497,1718171447477,-155.598734,0.00019169,2]
[329197499,1718171447513,-151.0,0.00019169,2]
[329197501,1718171447524,-151.0,0.00019169,2]
[329197503,1718171447535,-459.514807,0.00019169,2]
[329197505,1718171447546,-151.0,0.00019169,2]
[329197507,1718171447557,-459.514807,0.00019169,2]
[329197509,1718171447567,-154.925343,0.00019169,2]
[329197511,1718171447578,-151.0,0.00019169,2]
[329197513,1718171447589,-620.48745793,0.00019176,2]
[329197515,1718171447601,-500.0,0.00019178,2]
[329197517,1718171447612,-151.72271986,0.00019178,2]
[329197518,1718171447622,-500.0,0.00019178,2]
[329197520,1718171447633,-300.52565901,0.00019178,2]
[329197522,1718171447645,-500.0,0.00019178,2]
[329197524,1718171447656,-454.24075544,0.00019178,2]
[329197526,1718171447668,-153.1096045,0.00019178,2]
[329197527,1718171447680,-328.45716599,0.00019178,2]
[329197528,1718171447690,-456.29248285,0.00019178,2]
[329197529,1718171447710,-350.93741558,0.00019178,2]
[329197530,1718171447721,-500.0,0.00019178,2]
[329197531,1718171447732,-500.0,0.00019178,2]
[329197532,1718171447742,-158.20914626,0.00019178,2]
[329197533,1718171447753,-197.82781109,0.00019178,2]
[329197534,1718171447763,-374.94601085,0.00019178,2]
[329197535,1718171447774,-500.0,0.00019178,2]
[329197536,1718171447784,-500.0,0.00019178,2]
[329197537,1718171447797,-415.08625611,0.00019178,2]
[329197539,1718171447809,-451.25687443,0.00019178,2]
[329197541,1718171447822,-500.0,0.00019178,2]
[329197543,1718171447832,-240.8841959,0.00019178,2]
[329197545,1718171447845,-500.0,0.00019178,2]
[329197547,1718171447857,-500.0,0.00019178,2]
[329197549,1718171447871,-501.21225482,0.00019178,2]
[329197551,1718171447883,-500.0,0.00019178,2]
[329197553,1718171447894,-500.0,0.00019178,2]
[329197555,1718171447905,-500.0,0.00019178,2]
[329197558,1718171447918,-505.74444864,0.00019178,2]
[329197560,1718171447930,-600.99,0.00019178,2]
[329197562,1718171447944,-500.0,0.00019178,2]
[329197564,1718171447955,-500.0,0.00019178,2]
[329197566,1718171447967,-500.0,0.00019178,2]
[329197568,1718171447982,-500.0,0.00019178,2]
[329197570,1718171447994,-500.0,0.00019178,2]
[329197572,1718171448010,-500.0,0.00019178,2]
[329197574,1718171448027,-500.0,0.00019178,2]
[329197576,1718171448044,-500.0,0.00019178,2]
[329197579,1718171448062,-500.0,0.00019178,2]
[329197581,1718171448074,-500.0,0.00019178,2]
[329197583,1718171448084,-786.27,0.00019178,2]
[329197585,1718171448098,-172.82519195,0.00019178,2]
[329197587,1718171448110,-500.0,0.00019178,2]
[329197589,1718171448123,-165.35059104,0.00019178,2]
[329197591,1718171448134,-500.0,0.00019178,2]
[329197593,1718171448144,-500.0,0.00019178,2]
[329197595,1718171448156,-500.0,0.00019178,2]
[329197597,1718171448168,-500.0,0.00019178,2]
[329197598,1718171448180,-330.38349875,0.00019178,2]
[329197600,1718171448191,-500.0,0.00019178,2]
[329197602,1718171448201,-500.0,0.00019178,2]
[329197604,1718171448215,-500.0,0.00019178,2]
[329197606,1718171448228,-338.96025835,0.00019178,2]
[329197608,1718171448240,-500.0,0.00019178,2]
[329197610,1718171448253,-157.13383188,0.00019178,2]
[329197612,1718171448263,-500.0,0.00019178,2]
[329197614,1718171448273,-853.35,0.00019178,2]
[329197616,1718171448284,-511.71829385,0.00019178,2]
[329197618,1718171448296,-500.0,0.00019178,2]
[329197620,1718171448306,-500.0,0.00019178,2]
[329197622,1718171448317,-500.0,0.00019178,2]
[329197624,1718171448328,-500.0,0.00019178,2]
[329197625,1718171448338,-500.0,0.00019178,2]
[329197627,1718171448348,-500.0,0.00019178,2]
[329197629,1718171448359,-500.0,0.00019178,2]
[329197632,1718171448370,-506.43459174,0.00019178,2]
[329197634,1718171448380,-509.98292332,0.00019178,2]
[329197636,1718171448390,-500.0,0.00019178,2]
[329197637,1718171448400,-500.0,0.00019178,2]
[329197640,1718171448410,-500.0,0.00019178,2]
[329197642,1718171448420,-500.0,0.00019178,2]
[329197644,1718171448431,-500.0,0.00019178,2]
[329197646,1718171448441,-500.0,0.00019178,2]
[329197648,1718171448451,-500.0,0.00019178,2]
[329197649,1718171448461,-500.0,0.00019178,2]
[329197651,1718171448471,-500.0,0.00019178,2]
[329197654,1718171448481,-500.0,0.00019178,2]
[329197655,1718171448509,-500.0,0.00019178,2]
[329197657,1718171448520,-500.0,0.00019178,2]
[329197659,1718171448531,-500.0,0.00019178,2]
[329197661,1718171448542,-500.0,0.00019178,2]
[329197663,1718171448552,-500.0,0.00019178,2]
[329197665,1718171448563,-500.0,0.00019178,2]
[329197667,1718171448573,-500.0,0.00019178,2]
[329197669,1718171448584,-213.72395,0.00019178,2]
[329197671,1718171448595,-500.0,0.00019178,2]
[329197673,1718171448606,-500.0,0.00019178,2]
[329197675,1718171448617,-500.0,0.00019178,2]
[329197676,1718171448630,-589.63,0.00019178,2]
[329197678,1718171448646,-592.59,0.00019178,2]
[329197680,1718171448660,-500.0,0.00019178,2]
[329197682,1718171448671,-500.0,0.00019178,2]
[329197685,1718171448681,-500.0,0.00019178,2]
[329197686,1718171448700,-500.0,0.00019178,2]
[329197688,1718171448727,-500.0,0.00019178,2]
[329197691,1718171448745,-500.0,0.00019178,2]
[329197693,1718171448755,-500.0,0.00019178,2]
[329197695,1718171448767,-500.0,0.00019178,2]
[329197697,1718171448778,-500.0,0.00019178,2]
[329197699,1718171448794,-964.8,0.00019178,2]
[329197701,1718171448805,-500.0,0.00019178,2]
[329197703,1718171448817,-500.0,0.00019178,2]
[329197705,1718171448828,-500.0,0.00019178,2]
[329197707,1718171448841,-500.0,0.00019178,2]
[329197709,1718171448854,-500.0,0.00019178,2]
[329197711,1718171448868,-500.0,0.00019178,2]
[329197713,1718171448883,-500.0,0.00019178,2]
[329197715,1718171448893,-500.0,0.00019178,2]
[329197717,1718171448905,-500.0,0.00019178,2]
[329197719,1718171448915,-500.0,0.00019178,2]
[329197720,1718171448927,-500.0,0.00019178,2]
[329197722,1718171448938,-500.0,0.00019178,2]
[329197724,1718171448950,-500.0,0.00019178,2]
[329197726,1718171448961,-500.0,0.00019178,2]
[329197728,1718171448971,-500.0,0.00019178,2]
[329197730,1718171448981,-527.14,0.00019178,2]
[329197732,1718171448992,-828.69,0.00019178,2]
[329197734,1718171449003,-1172.78,0.00019178,2]
[329197736,1718171449014,-500.0,0.00019178,2]
[329197738,1718171449024,-500.0,0.00019178,2]
[329197740,1718171449034,-151.0,0.00019178,2]
[329197742,1718171449049,-559.41,0.00019178,2]
[329197744,1718171449059,-500.0,0.00019178,2]
[329197746,1718171449070,-509.1167099,0.00019178,2]
[329197748,1718171449080,-500.0,0.00019178,2]
[329197750,1718171449092,-500.0,0.00019178,2]
[329197752,1718171449105,-500.0,0.00019178,2]
[329197754,1718171449116,-525.08,0.00019178,2]
[329197756,1718171449128,-849.33,0.00019178,2]
[329197758,1718171449139,-521.73,0.00019178,2]
[329197760,1718171449149,-500.0,0.00019178,2]
[329197762,1718171449159,-500.0,0.00019178,2]
[329197764,1718171449170,-535.73,0.00019178,2]
[329197766,1718171449180,-508.84,0.00019178,2]
[329197768,1718171449191,-500.0,0.00019178,2]
[329197770,1718171449203,-501.12,0.00019178,2]
[329197772,1718171449213,-500.0,0.00019178,2]
[329197774,1718171449224,-500.0,0.00019178,2]
[329197776,1718171449234,-500.0,0.00019178,2]
[329197778,1718171449245,-500.0,0.00019178,2]
[329197780,1718171449256,-500.0,0.00019178,2]
[329197782,1718171449266,-739.27,0.00019178,2]
[329197784,1718171449276,-500.0,0.00019178,2]
[329197786,1718171449287,-500.0,0.00019178,2]
[329197788,1718171449298,-268.17610498,0.00019178,2]
[329197790,1718171449308,-500.0,0.00019178,2]
[329197792,1718171449319,-560.13,0.00019178,2]
[329197794,1718171449329,-500.0,0.00019178,2]
[329197796,1718171449340,-591.07,0.00019178,2]
[329197798,1718171449350,-942.68,0.00019178,2]
[329197800,1718171449361,-500.0,0.00019178,2]
[329197802,1718171449371,-500.0,0.00019178,2]
[329197804,1718171449382,-504.14607327,0.00019178,2]
[329197806,1718171449392,-500.0,0.00019178,2]
[329197808,1718171449402,-500.0,0.00019178,2]
[329197810,1718171449413,-3740.07,0.00019178,2]
[329197812,1718171449423,-500.0,0.00019178,2]
[329197814,1718171449433,-902.41,0.00019178,2]
[329197816,1718171449443,-158.47130623,0.00019178,2]
[329197818,1718171449453,-586.12,0.00019178,2]
[329197820,1718171449463,-500.0,0.00019178,2]
[329197822,1718171449473,-500.0,0.00019178,2]
[329197824,1718171449486,-510.03981985,0.00019178,2]
[329197826,1718171449505,-1098.59,0.00019178,2]
[329197828,1718171449517,-152.29641072,0.00019178,2]
[329197830,1718171449528,-501.29915126,0.00019178,2]
[329197832,1718171449539,-500.0,0.00019178,2]
[329197834,1718171449549,-500.0,0.00019178,2]
[329197836,1718171449559,-609.61,0.00019178,2]
[329197838,1718171449569,-500.0,0.00019178,2]
[329197840,1718171449579,-500.0,0.00019178,2]
[329197841,1718171449590,-500.0,0.00019178,2]
[329197842,1718171449599,-598.47,0.00019178,2]
[329197843,1718171449609,-549.58,0.00019178,2]
[329197844,1718171449619,-518.79,0.00019178,2]
[329197845,1718171449628,-500.0,0.00019178,2]
[329197846,1718171449638,-518.54,0.00019178,2]
[329197847,1718171449647,-500.0,0.00019178,2]
[329197848,1718171449657,-573.27058608,0.00019178,2]
[329197849,1718171449667,-500.0,0.00019178,2]
[329197850,1718171449676,-500.0,0.00019178,2]
[329197851,1718171449686,-504.12179206,0.00019178,2]
[329197852,1718171449696,-508.11715443,0.00019178,2]
[329197853,1718171449708,-500.0,0.00019178,2]
[329197854,1718171449719,-500.0,0.00019178,2]
[329197855,1718171449730,-500.0,0.00019178,2]
[329197856,1718171449741,-500.0,0.00019178,2]
[329197857,1718171449752,-500.0,0.00019178,2]
[329197858,1718171449768,-1003.45,0.00019178,2]
[329197859,1718171449787,-527.77,0.00019178,2]
[329197860,1718171449797,-1277.73,0.00019178,2]
[329197861,1718171449808,-500.0,0.00019178,2]
[329197862,1718171449831,-500.0,0.00019178,2]
[329197863,1718171449850,-500.0,0.00019178,2]
[329197864,1718171449862,-646.29,0.00019178,2]
[329197865,1718171449874,-500.0,0.00019178,2]
[329197866,1718171449887,-782.89,0.00019178,2]
[329197867,1718171449898,-525.69,0.00019178,2]
[329197868,1718171449909,-500.0,0.00019178,2]
[329197869,1718171449924,-500.0,0.00019178,2]
[329197870,1718171449954,-500.0,0.00019178,2]
[329197871,1718171449974,-756.09,0.00019178,2]
[329197872,1718171449999,-500.0,0.00019178,2]
[329197873,1718171450020,-500.0,0.00019178,2]
[329197874,1718171450034,-500.0,0.00019178,2]
[329197875,1718171450049,-503.48021753,0.00019178,2]
[329197876,1718171450059,-500.0,0.00019178,2]
[329197877,1718171450070,-554.4,0.00019178,2]
[329197878,1718171450080,-500.0,0.00019178,2]
[329197879,1718171450094,-892.94,0.00019178,2]
[329197880,1718171450109,-881.85,0.00019178,2]
[329197881,1718171450329,-659.91,0.00019178,2]
[329197882,1718171450339,-500.0,0.00019178,2]
[329197883,1718171450349,-500.0,0.00019178,2]
[329197884,1718171450359,-561.75,0.00019178,2]
[329197885,1718171450369,-500.0,0.00019178,2]
[329197886,1718171450379,-1066.24,0.00019178,2]
[329197887,1718171450388,-500.0,0.00019178,2]
[329197888,1718171450398,-500.0,0.00019178,2]
[329197889,1718171450408,-151.0,0.00019178,2]
[329197890,1718171450417,-151.0,0.00019178,2]
[329197891,1718171450429,-500.0,0.00019178,2]
[329197892,1718171450439,-540.94,0.00019178,2]
[329197893,1718171450449,-526.61,0.00019178,2]
[329197894,1718171450458,-500.0,0.00019178,2]
[329197895,1718171450470,-170.56,0.00019178,2]
[329197896,1718171450481,-843.12,0.00019178,2]
[329197897,1718171450505,-500.0,0.00019178,2]
[329197898,1718171450518,-812.26,0.00019178,2]
[329197899,1718171450527,-500.0,0.00019178,2]
[329197900,1718171450539,-500.0,0.00019178,2]
[329197901,1718171450549,-500.0,0.00019178,2]
[329197902,1718171450559,-500.0,0.00019178,2]
[329197903,1718171450568,-151.0,0.00019178,2]
[329197904,1718171450578,-500.0,0.00019178,2]
[329197905,1718171450590,-500.0,0.00019178,2]
[329197906,1718171450610,-500.0,0.00019178,2]
[329197907,1718171450624,-500.0,0.00019178,2]
[329197908,1718171450636,-500.0,0.00019178,2]
[329197909,1718171450647,-500.0,0.00019178,2]
[329197910,1718171450659,-500.0,0.00019178,2]
[329197911,1718171450669,-500.0,0.00019178,2]
[329197912,1718171450680,-576.75,0.00019178,2]
[329197913,1718171450691,-619.65,0.00019178,2]
[329197914,1718171450701,-500.0,0.00019178,2]
[329197915,1718171450711,-1004.41,0.00019178,2]
[329197916,1718171450721,-500.0,0.00019178,2]
[329197917,1718171450731,-500.0,0.00019178,2]
[329197918,1718171450741,-503.92661283,0.00019178,2]
[329197919,1718171450753,-500.0,0.00019178,2]
[329197920,1718171450765,-500.0,0.00019178,2]
[329197921,1718171450776,-1010.77,0.00019178,2]
[329197922,1718171450790,-512.4057852,0.00019178,2]
[329197923,1718171450801,-500.0,0.00019178,2]
[329197924,1718171450810,-500.0,0.00019178,2]
[329197925,1718171450825,-500.0,0.00019178,2]
[329197926,1718171450835,-500.0,0.00019178,2]
[329197927,1718171450846,-500.0,0.00019178,2]
[329197928,1718171450861,-500.0,0.00019178,2]
[329197929,1718171450871,-500.0,0.00019178,2]
[329197930,1718171450883,-151.0,0.00019178,2]
[329197931,1718171450892,-500.0,0.00019178,2]
[329197932,1718171450903,-500.0,0.00019178,2]
[329197933,1718171450913,-500.0,0.00019178,2]
[329197934,1718171450924,-525.29,0.00019178,2]
[329197935,1718171450934,-500.0,0.00019178,2]
[329197936,1718171450944,-661.97,0.00019178,2]
[329197937,1718171450955,-502.9866651,0.00019178,2]
[329197938,1718171450964,-500.0,0.00019178,2]
[329197939,1718171450974,-500.0,0.00019178,2]
[329197940,1718171450984,-500.0,0.00019178,2]
[329197941,1718171450995,-731.99,0.00019178,2]
[329197942,1718171451005,-500.0,0.00019178,2]
[329197943,1718171451016,-540.47632801,0.00019178,2]
[329197944,1718171451025,-500.0,0.00019178,2]
[329197945,1718171451036,-500.0,0.00019178,2]
[329197946,1718171451050,-500.0,0.00019178,2]
[329197947,1718171451060,-515.28,0.00019178,2]
[329197948,1718171451070,-551.4,0.00019178,2]
[329197949,1718171451080,-500.0,0.00019178,2]
[329197950,1718171451091,-500.0,0.00019178,2]
[329197951,1718171451101,-594.58776063,0.00019178,2]
[329197952,1718171451111,-982.59,0.00019178,2]
[329197953,1718171451122,-500.0,0.00019178,2]
[329197954,1718171451132,-507.17195467,0.00019178,2]
[329197955,1718171451142,-500.0,0.00019178,2]
[329197956,1718171451152,-500.0,0.00019178,2]
[329197957,1718171451163,-500.0,0.00019178,2]
[329197958,1718171451174,-500.0,0.00019178,2]
[329197959,1718171451186,-154.013156,0.00019178,2]
[329197960,1718171451198,-500.0,0.00019178,2]
[329197961,1718171451209,-500.0,0.00019178,2]
[329197962,1718171451220,-500.0,0.00019178,2]
[329197963,1718171451230,-1435.04,0.00019178,2]
[329197964,1718171451241,-500.0,0.00019178,2]
[329197965,1718171451254,-539.51,0.00019178,2]
[329197966,1718171451264,-518.79021644,0.00019178,2]
[329197967,1718171451275,-500.0,0.00019178,2]
[329197968,1718171451287,-500.0,0.00019178,2]
[329197969,1718171451299,-500.0,0.00019178,2]
[329197970,1718171451310,-500.0,0.00019178,2]
[329197971,1718171451320,-789.06,0.00019178,2]
[329197972,1718171451332,-500.0,0.00019178,2]
[329197973,1718171451342,-500.0,0.00019178,2]
[329197974,1718171451352,-500.0,0.00019178,2]
[329197975,1718171451362,-500.0,0.00019178,2]
[329197976,1718171451371,-151.0,0.00019178,2]
[329197977,1718171451384,-896.19,0.00019178,2]
[329197978,1718171451394,-500.0,0.00019178,2]
[329197979,1718171451403,-500.0,0.00019178,2]
[329197980,1718171451414,-500.0,0.00019178,2]
[329197981,1718171451424,-500.0,0.00019178,2]
[329197982,1718171451434,-151.632995,0.00019178,2]
[329197983,1718171451444,-500.0,0.00019178,2]
[329197984,1718171451455,-774.46,0.00019178,2]
[329197985,1718171451465,-500.0,0.00019178,2]
[329197986,1718171451475,-151.632995,0.00019178,2]
[329197987,1718171451497,-3083.55,0.00019178,2]
[329197988,1718171451518,-500.0,0.00019178,2]
[329197989,1718171451532,-500.0,0.00019178,2]
[329197990,1718171451543,-500.0,0.00019178,2]
[329197991,1718171451553,-1015.78,0.00019178,2]
[329197992,1718171451564,-500.0,0.00019178,2]
[329197993,1718171451574,-668.34,0.00019178,2]
[329197994,1718171451584,-151.0,0.00019178,2]
[329197995,1718171451596,-500.0,0.00019178,2]
[329197996,1718171451614,-500.0,0.00019178,2]
[329197997,1718171451634,-500.0,0.00019178,2]
[329197998,1718171451646,-500.0,0.00019178,2]
[329197999,1718171451671,-500.0,0.00019178,2]
[329198000,1718171451691,-151.0,0.00019178,2]
[329198001,1718171451701,-500.0,0.00019178,2]
[329198002,1718171451718,-3778.45,0.00019178,2]
[329198003,1718171451729,-500.0,0.00019178,2]
[329198004,1718171451743,-6443.67,0.00019178,2]
[329198005,1718171451761,-4985.71,0.00019178,2]
[329198006,1718171451773,-506.35687893,0.00019178,2]
[329198007,1718171451787,-2108.66,0.00019178,2]
[329198008,1718171451811,-562.69,0.00019178,2]
[329198009,1718171451830,-500.0,0.00019178,2]
[329198010,1718171451847,-4059.36,0.00019178,2]
[329198011,1718171451867,-3732.86,0.00019178,2]
[329198012,1718171451883,-1947.2,0.00019178,2]
[329198013,1718171451894,-685.03,0.00019178,2]
[329198014,1718171451906,-500.0,0.00019178,2]
[329198015,1718171451925,-500.0,0.00019178,2]
[329198016,1718171451938,-541.38,0.00019178,2]
[329198017,1718171451952,-500.0,0.00019178,2]
[329198018,1718171451972,-659.8,0.00019178,2]
[329198019,1718171451985,-895.92,0.00019178,2]
[329198020,1718171452000,-500.0,0.00019178,2]
[329198021,1718171452010,-500.0,0.00019178,2]
[329198022,1718171452022,-500.0,0.00019178,2]
[329198023,1718171452032,-921.13,0.00019178,2]
[329198024,1718171452051,-500.0,0.00019178,2]
[329198025,1718171452062,-500.0,0.00019178,2]
[329198026,1718171452081,-1209.81,0.00019178,2]
[329198027,1718171452100,-1084.12,0.00019178,2]
[329198028,1718171452111,-2213.64,0.00019178,2]
[329198029,1718171452122,-500.0,0.00019178,2]
[329198030,1718171452134,-529.17449675,0.00019178,2]
[329198031,1718171452145,-819.89,0.00019178,2]
[329198032,1718171452161,-1043.26,0.00019178,2]
[329198033,1718171452174,-500.0,0.00019178,2]
[329198034,1718171452191,-500.0,0.00019178,2]
[329198035,1718171452203,-712.46,0.00019178,2]
[329198036,1718171452221,-500.0,0.00019178,2]
[329198037,1718171452231,-9777.79,0.00019178,2]
[329198038,1718171452242,-14047.18,0.00019178,2]
[329198039,1718171452252,-1217.13,0.00019178,2]
[329198040,1718171452267,-151.0,0.00019178,2]
[329198041,1718171452278,-779.47,0.00019178,2]
[329198042,1718171452290,-500.0,0.00019178,2]
[329198043,1718171452301,-934.5,0.00019178,2]
[329198044,1718171452312,-500.0,0.00019178,2]
[329198045,1718171452323,-1736.56,0.00019178,2]
[329198046,1718171452334,-1293.07,0.00019178,2]
[329198047,1718171452344,-521.99842702,0.00019178,2]
[329198048,1718171452355,-500.0,0.00019178,2]
[329198049,1718171452367,-500.0,0.00019178,2]
[329198050,1718171452379,-652.94,0.00019178,2]
[329198051,1718171452396,-500.0,0.00019178,2]
[329198052,1718171452410,-501.12579487,0.00019178,2]
[329198053,1718171452422,-1001.11,0.00019178,2]
[329198054,1718171452432,-598.29,0.00019178,2]
[329198055,1718171452443,-500.0,0.00019178,2]
[329198056,1718171452454,-560.07,0.00019178,2]
[329198057,1718171452471,-1784.49,0.00019178,2]
[329198058,1718171452489,-1144.99,0.00019178,2]
[329198059,1718171452514,-500.0,0.00019178,2]
[329198060,1718171452536,-500.0,0.00019178,2]
[329198061,1718171452548,-500.0,0.00019178,2]
[329198062,1718171452573,-606.39,0.00019178,2]
[329198063,1718171452597,-500.0,0.00019178,2]
[329198064,1718171452611,-5888.99,0.00019178,2]
[329198065,1718171452625,-500.0,0.00019178,2]
[329198066,1718171452639,-500.0,0.00019178,2]
[329198067,1718171452656,-500.0,0.00019178,2]
[329198068,1718171452673,-1377.47,0.00019178,2]
[329198069,1718171452685,-500.0,0.00019178,2]
[329198070,1718171452712,-500.0,0.00019178,2]
[329198071,1718171452724,-819.87,0.00019178,2]
[329198072,1718171452735,-3362.2,0.00019178,2]
[329198073,1718171452745,-751.05,0.00019178,2]
[329198074,1718171452756,-1463.76,0.00019178,2]
[329198075,1718171452772,-500.0,0.00019178,2]
[329198076,1718171452783,-500.0,0.00019178,2]
[329198077,1718171452794,-500.0,0.00019178,2]
[329198078,1718171452804,-500.0,0.00019178,2]
[329198079,1718171452815,-2614.11,0.00019178,2]
[329198080,1718171452828,-500.0,0.00019178,2]
[329198081,1718171452843,-913.63,0.00019178,2]
[329198082,1718171452857,-500.0,0.00019178,2]
[329198083,1718171452868,-500.0,0.00019178,2]
[329198084,1718171452879,-1206.16,0.00019178,2]
[329198085,1718171452889,-747.13,0.00019178,2]
[329198086,1718171452899,-796.99,0.00019178,2]
[329198087,1718171452910,-1951.95,0.00019178,2]
[329198088,1718171452925,-2331.93,0.00019178,2]
[329198089,1718171452936,-1204.68,0.00019178,2]
[329198090,1718171452947,-585.13,0.00019178,2]
[329198091,1718171452958,-888.89,0.00019178,2]
[329198092,1718171452968,-1357.09,0.00019178,2]
[329198093,1718171452977,-7232.63,0.00019178,2]
[329198094,1718171452989,-1913.5,0.00019178,2]
[329198095,1718171453000,-2894.23,0.00019178,2]
[329198096,1718171453011,-500.0,0.00019178,2]
[329198097,1718171453023,-843.11,0.00019178,2]
[329198098,1718171453036,-178.03736351,0.00019178,2]
[329198099,1718171453052,-333.55483266,0.00019178,2]
[329198100,1718171453063,-840.77,0.00019178,2]
[329198101,1718171453076,-500.0,0.00019178,2]
[329198102,1718171453086,-500.0,0.00019178,2]
[329198103,1718171453099,-1142.19,0.00019178,2]
[329198104,1718171453110,-981.21873082,0.00019178,2]
[329198105,1718171453120,-511.65,0.00019178,2]
[329198106,1718171453132,-525.78278708,0.00019178,2]
[329198107,1718171453142,-3602.12,0.00019178,2]
[329198108,1718171453165,-500.0,0.00019178,2]
[329198109,1718171453180,-500.0,0.00019178,2]
[329198110,1718171453191,-500.0,0.00019178,2]
[329198111,1718171453205,-500.0,0.00019178,2]
[329198112,1718171453216,-500.0,0.00019178,2]
[329198113,1718171453229,-2892.9,0.00019178,2]
[329198114,1718171453242,-531.37,0.00019178,2]
[329198115,1718171453257,-1412.48,0.00019178,2]
[329198116,1718171453272,-500.0,0.00019178,2]
[329198117,1718171453285,-1734.65,0.00019178,2]